Workbook

Sheet 定稿
A1: 安徽警官职业学院2021年各单位、部门预算执行分解一览表
A2: 单位：万元
A3: 序号 | B3: 部门 | C3: 金额 | D3: 办公费1 | E3: 办公费2 | F3: 印刷费 | G3: 咨询费 | H3: 手续费 | I3: 水电费 取暖费 | J3: 邮电费 | K3: 物业管理费 | L3: 差旅费 | M3: 三公 经费 | N3: 维修费 | O3: 培训费 | P3: 专用材料费 | Q3: 劳务费 | R3: 委托业务费 | S3: 工会 经费 | T3: 福利费 | U3: 其他交通费用 | V3: 其他商品服务 | W3: 基本工资 | X3: 一次性 奖励 | Y3: 津贴 补贴 | Z3: 绩效工资 | AA3: 养老 保险 | AB3: 职业年金 | AC3: 医疗保险 | AD3: 生育失业工伤 | AE3: 住房 公积金 | AF3: 医疗费 | AG3: 聘用工资 | AH3: 独生子女费 | AI3: 助学金 | AJ3: 离退休工资 | AK3: 离退休医疗 | AL3: 遗属 补助 | AM3: 其他资本性支出 | AN3: 安置补助 | AO3: 政府采购 | AP3: 备注
A4: 1 | B4: 办公室 | C4: =SUM(D4:AO4) -> 281.30 | D4: =1.2 -> 1.20 | E4: 10.00 | F4: 2.50 | J4: 56.50 | L4: 4.00 | M4: 60.00 | O4: 2.00 | R4: 10.00 | U4: 129.00 | V4: 1.10 | AO4: 5.00 | AP4: 三公经费为招待费15万、公车60万
A5: 2 | B5: 组宣处 | C5: =SUM(D5:AO5) -> 88.73 | D5: =0.4 -> 0.40 | E5: 3.00 | F5: 3.00 | L5: 10.12 | O5: 10.00 | T5: 27.60 | V5: 34.61 | AP5: 离退休福利费已支出3.4万、公用经费已支出2.2万
A6: 3 | B6: 人事处 | C6: 7,533.40 | D6: 0.30 | F6: 1.00 | L6: 2.00 | O6: 20.00 | Q6: 80.00 | V6: 40.00 | W6: 2,033.10 | X6: 1,800.00 | Z6: 2,479.80 | AA6: 620.00 | AB6: 233.00 | AG6: 132.30 | AH6: 1.00 | AJ6: 83.30 | AL6: 7.60 | AP6: 离退休工资871.9万元含提租补贴35.5万、离退休医疗34.6万等。在职工资目前已支付967.3万。
A7: 4 | B7: 监审处 | C7: 14.60 | D7: 0.20 | L7: 1.00 | O7: 7.20 | R7: 6.00 | V7: 0.20 | AP7: 30万委托业务费为工程审计费等
A8: 5 | B8: 教务处 | C8: 32.60 | D8: =0.4 -> 0.40 | J8: 2.00 | L8: 2.60 | O8: 10.00 | R8: 11.00 | AI8: 0.60 | AO8: 6.00
A9: 6 | B9: 学生处 | C9: 213.10 | D9: =0.4 -> 0.40 | E9: 0.50 | J9: 4.50 | L9: 6.00 | O9: 5.00 | P9: 10.00 | R9: 30.00 | V9: 30.00 | AI9: 118.70 | AO9: 8.00 | AP9: 助学金114万为勤工俭学50万、院助学金10万、学生活动14万，军训、班费等其他所有学生支出40万。
A10: 7 | B10: 行财处 | C10: 2,197.66 | D10: 0.60 | H10: 3.40 | L10: 3.00 | O10: 3.00 | Y10: 625.80 | AC10: 316.00 | AD10: 130.60 | AE10: 908.80 | AF10: 134.30 | AK10: 72.16 | AP10: 行财处办公费0.51万、差旅费4万。其余费用均统筹使用
A11: 8 | B11: 保卫处 | C11: 8.20 | D11: 0.30 | E11: 0.20 | F11: 1.00 | L11: 0.80 | O11: 1.00 | AI11: 0.90 | AM11: 4.00
A12: 9 | B12: 法一系 | C12: 28.80 | D12: 2.50 | E12: 1.00 | L12: 7.60 | O12: 7.60 | P12: 2.80 | Q12: 1.50 | R12: 1.80 | AI12: 4.00
A13: 10 | B13: 法二系 | C13: 23.20 | D13: 2.20 | E13: 1.00 | L13: 6.00 | O13: 6.00 | P13: 2.50 | Q13: 1.50 | R13: 1.50 | AI13: 2.50
A14: 11 | B14: 警察系 | C14: 28.90 | D14: 2.30 | E14: 1.00 | L14: 7.20 | O14: 7.20 | P14: 2.95 | Q14: 1.50 | R14: 1.95 | AI14: 4.80 | AP14: 警察系助学金49.5万元为政法干警生活费45万、学生活动经费4.5万
A15: 12 | B15: 公管系 | C15: 24.70 | D15: 2.10 | E15: 1.00 | L15: 6.40 | O15: 6.40 | P15: 2.65 | Q15: 1.50 | R15: 1.65 | AI15: 3.00
A16: 13 | B16: 信管系 | C16: 36.50 | D16: 2.80 | E16: 1.00 | F16: 1.50 | L16: 9.60 | O16: 9.60 | P16: 3.05 | Q16: 1.50 | R16: 2.05 | AI16: 5.40
A17: 14 | B17: 马院 | C17: 5.03 | D17: 0.43 | L17: 2.00 | O17: 2.00 | AI17: 0.60
A18: 15 | B18: 警体部 | C18: 41.00 | D18: 0.60 | F18: 1.00 | L18: 2.80 | N18: 9.00 | O18: 2.10 | P18: 15.00 | V18: 0.50 | AI18: 10.00
A19: 16 | B19: 基础部 | C19: 9.50 | D19: 0.60 | E19: 0.20 | F19: 0.10 | L19: 3.00 | O19: 5.00 | AI19: 0.60
A20: 17 | B20: 图书馆 | C20: 100.84 | D20: 1.10 | E20: 8.00 | F20: 0.50 | L20: 3.80 | O20: 2.10 | P20: 1.14 | Q20: 0.20 | R20: 1.50 | AI20: 2.50 | AO20: 80.00
A21: 18 | B21: 实训 | C21: 37.33 | D21: 0.58 | F21: 1.00 | L21: 2.40 | N21: 8.00 | O21: 2.40 | P21: 6.05 | R21: 1.90 | AI21: 15.00 | AP21: 助学金已支付4.72万
A22: 19 | B22: 培训部 | C22: 464.00 | D22: 0.60 | E22: 0.50 | F22: 3.90 | J22: 0.50 | L22: 3.00 | O22: 434.00 | P22: 1.00 | R22: 20.00 | V22: 0.50
A23: 20 | B23: 学报 | C23: 9.10 | D23: 0.20 | E23: 0.40 | F23: 6.50 | L23: 1.00 | O23: 1.00
A24: 21 | B24: 工会 | C24: 103.60 | D24: 0.20 | L24: 1.00 | O24: 1.00 | S24: 101.40 | AP24: 工会经费已支付13.3万元。
A25: 22 | B25: 后勤 | C25: 1,322.67 | D25: 1.20 | I25: 480.70 | J25: 26.30 | L25: 3.00 | N25: 100.00 | O25: 2.00 | P25: 50.00 | AM25: 16.00 | AO25: 643.47
A26: 23 | B26: 科研 | C26: 228.11 | E26: =26.51-6.51 -> 20.00 | F26: 21.58 | G26: 10.00 | J26: 0.20 | L26: =53.43-28.43 -> 25.00 | O26: 23.60 | P26: 9.40 | Q26: 11.73 | R26: =117.34-40 -> 77.34 | U26: 2.10 | V26: 9.09 | AM26: 14.65 | AO26: 3.42
A27: 23 | B27: 统筹 | C27: 1,223.22 | E27: =E28-SUM(E4:E26) -> 5.09 | F27: =F28-SUM(F4:F26) -> 7.42 | G27: =G28-SUM(G4:G26) -> 0.00 | J27: =J28-SUM(J4:J26) -> 0.00 | K27: =K28-SUM(K4:K26) -> 8.10 | L27: 1.88 | N27: 140.70 | O27: =O28-SUM(O4:O26) -> 7.40 | P27: =P28-SUM(P4:P26) -> 52.66 | Q27: =Q28-SUM(Q4:Q26) -> 100.57 | R27: =R28-SUM(R4:R26) -> 116.31 | T27: =T28-SUM(T4:T26) -> 39.80 | V27: =V28-SUM(V4:V26) -> 100.00 | AI27: 106.20 | AM27: =AM28-SUM(AM4:AM26) -> 86.39 | AN27: =AN28-SUM(AN4:AN26) -> 450.70
A28: 24 | B28: 合计 | C28: 14,056.09 | D28: 21.21 | E28: 52.89 | F28: 51.00 | G28: 10.00 | H28: 3.40 | I28: 480.70 | J28: 90.00 | K28: 8.10 | L28: 115.20 | M28: 60.00 | N28: 257.70 | O28: 577.60 | P28: 159.20 | Q28: 200.00 | R28: 283.00 | S28: 101.40 | T28: 67.40 | U28: 131.10 | V28: 216.00 | W28: 2,033.10 | X28: 1,800.00 | Y28: 625.80 | Z28: 2,479.80 | AA28: 620.00 | AB28: 233.00 | AC28: 316.00 | AD28: 130.60 | AE28: 908.80 | AF28: 134.30 | AG28: 132.30 | AH28: 1.00 | AI28: 274.80 | AJ28: 83.30 | AK28: 72.16 | AL28: 7.60 | AM28: 121.04 | AN28: 450.70 | AO28: 745.89 | AP28: =SUM(AP4:AP27) -> 0.00
A29: 备注：若确有专项业务未安排预算的，按预算调整审批流程，从统筹经费列支。
O30: 128.00
B31: 合计 | C31: =SUM(D31:AO31) -> 12,775.30 | D31: 20.70 | E31: 54.00 | F31: 24.90 | G31: 6.00 | H31: 3.50 | I31: 653.90 | J31: 94.00 | K31: 15.00 | L31: 100.00 | M31: 75.00 | N31: 239.40 | O31: 361.40 | P31: 79.40 | Q31: 200.00 | R31: 127.10 | S31: 80.00 | T31: 60.60 | V31: 40.90 | W31: 1,272.60 | X31: 1,600.00 | Y31: 533.80 | Z31: 1,883.30 | AA31: 838.50 | AB31: 341.10 | AC31: 275.00 | AD31: 95.50 | AE31: 695.00 | AF31: 106.10 | AG31: 180.00 | AH31: 2.00 | AI31: 240.00 | AJ31: 810.90 | AK31: 18.90 | AL31: 5.80 | AM31: 80.00 | AO31: 1,561.00
C32: =SUM(D32:AO32) -> 518.30 | F32: 69.30 | K32: 200.00 | M32: 65.00 | R32: =25+50+39 -> 114.00 | V32: 70.00
D33: =D31+D32 -> 20.70 | E33: 54.00 | F33: 94.20 | G33: 6.00 | H33: 3.50 | I33: 653.90 | J33: 94.00 | K33: 215.00 | L33: 100.00 | M33: 140.00 | N33: 239.40 | O33: 361.40 | P33: 79.40 | Q33: 200.00 | R33: 241.10 | S33: 80.00 | T33: 60.60 | V33: 110.90

Sheet 杨
C1: 安徽警官职业学院2022年各单位、部门预算执行分解一览表
C2: 单位：万元
A3: 人员 | B3: 学生人数 | C3: 序号 | D3: 部门 | E3: 合计 | F3: 办公 费1 | G3: 办公 费2 | H3: 印刷费 | I3: 咨询费 | J3: 手续费 | K3: 水电费 取暖费 | L3: 邮电费 | M3: 物业管理费 | N3: 差旅费 | O3: 三公 经费 | P3: 维修费 | Q3: 培训费 | R3: 专用材料费 | S3: 劳务费 | T3: 委托业务费 | U3: 工会 经费 | V3: 福利费 | W3: 其他交通费用 | X3: 其他商品服务 | Y3: 基本工资 | Z3: 一次性奖励 | AA3: 津贴 补贴 | AB3: 绩效 工资 | AC3: 养老 保险 | AD3: 职业 年金 | AE3: 医疗 保险 | AF3: 生育失业工伤 | AG3: 住房 公积金 | AH3: 医疗费 | AI3: 聘用 工资 | AJ3: 独生子女费 | AK3: 助学金 | AL3: 离退休工资 | AM3: 离退休医疗 | AN3: 遗属 补助 | AO3: 其他资本性支出 | AP3: 安置 补助 | AQ3: 备注
A4: 32 | C4: 1 | D4: 办公室 | E4: =SUM(F4:AP4) -> 244.04 | F4: =A4*0.048 -> 1.54 | G4: 14.00 | H4: 5.00 | L4: 62.00 | N4: =A4*0.2 -> 6.40 | O4: 60.00 | Q4: =A4*0.2 -> 6.40 | R4: 2.60 | T4: 10.00 | W4: 60.00 | X4: 1.10 | AO4: 15.00 | AQ4: 三公经费为招待费15万、公车60万
A5: 10 | C5: 2 | D5: 组宣处 | E5: 63.96 | F5: =A5*0.048 -> 0.48 | G5: 7.00 | H5: 5.00 | L5: 0.70 | N5: =A5*0.2 -> 2.00 | Q5: =A5*0.2 -> 2.00 | T5: 22.60 | V5: 14.28 | X5: 9.90 | AQ5: 离退休福利费已支出3.4万、公用经费已支出2.2万
A6: 9 | C6: 3 | D6: 人事处 | E6: 8,005.50 | F6: 0.43 | H6: 1.00 | N6: 1.80 | Q6: 1.80 | R6: 1.00 | S6: 281.00 | T6: 13.45 | X6: 30.00 | Y6: =1859.17-132 -> 1,727.17 | Z6: 1,850.00 | AA6: =596.95-192 -> 404.95 | AB6: 2,572.57 | AC6: 534.74 | AD6: 241.68 | AF6: 129.70 | AI6: 132.00 | AJ6: 1.02 | AL6: =45.07+26.93 -> 72.00 | AN6: 9.19 | AQ6: 离退休工资871.9万元含提租补贴35.5万、离退休医疗34.6万等。在职工资目前已支付967.3万。
A7: 5 | C7: 4 | D7: 监审处 | E7: 3.24 | F7: 0.24 | N7: 1.00 | Q7: 1.00 | T7: 1.00 | AQ7: 30万委托业务费为工程审计费等
A8: 14 | C8: 5 | D8: 教务处 | E8: 34.17 | F8: 0.67 | G8: 5.00 | H8: 6.00 | L8: 4.60 | N8: 2.80 | Q8: 2.80 | T8: 11.00 | X8: 1.30
A9: 15 | C9: 6 | D9: 学生处 | E9: 1,551.23 | F9: 0.72 | H9: 8.00 | L9: 4.67 | N9: 3.00 | Q9: 3.00 | R9: 10.00 | T9: 11.37 | X9: 18.63 | AK9: =1281.79+185.55+27.5-3 -> 1491.84 | AQ9: 助学金114万为勤工俭学50万、院助学金10万、学生活动14万，军训、班费等其他所有学生支出40万。
A10: 14 | C10: 7 | D10: 行财处 | E10: 1,948.54 | F10: 0.67 | H10: 0.50 | J10: 3.00 | M10: 4.80 | N10: 2.80 | Q10: 2.80 | T10: 9.60 | V10: 54.10 | AA10: =192+450 -> 642.00 | AE10: 288.52 | AG10: 770.00 | AH10: 140.75 | AM10: 29.00 | AQ10: 行财处办公费0.51万、差旅费4万。其余费用均统筹使用
A11: 4 | C11: 8 | D11: 保卫处 | E11: 14.59 | F11: 0.19 | H11: 2.80 | N11: 0.80 | Q11: 0.80 | R11: 10.00
A12: 39 | B12: 1612 | C12: 9 | D12: 法一系 | E12: 30.02 | F12: 1.87 | G12: 1.00 | H12: 0.50 | N12: 7.80 | Q12: 7.80 | R12: 2.80 | T12: 1.80 | AK12: =0.004*B12 -> 6.45
A13: 28 | B13: 1092 | C13: 10 | D13: 法二系 | E13: 22.41 | F13: 1.34 | G13: 1.00 | H13: 0.50 | N13: 5.60 | Q13: 5.60 | R13: 2.50 | T13: 1.50 | AK13: =0.004*B13 -> 4.37
A14: 34 | B14: 1783 | C14: 11 | D14: 警察系 | E14: 28.76 | F14: 1.63 | G14: 1.00 | H14: 0.50 | N14: 6.80 | Q14: 6.80 | R14: 2.95 | T14: 1.95 | AK14: 7.13 | AQ14: 警察系助学金49.5万元为政法干警生活费45万、学生活动经费4.5万
A15: 33 | B15: 1294 | C15: 12 | D15: 公管系 | E15: 25.76 | F15: 1.58 | G15: 1.00 | H15: 0.50 | N15: 6.60 | Q15: 6.60 | R15: 2.65 | T15: 1.65 | AK15: 5.18
A16: 50 | B16: 2502 | C16: 13 | D16: 信管系 | E16: 86.10 | F16: 2.40 | G16: 1.00 | H16: 2.00 | N16: 10.00 | Q16: 10.00 | R16: 3.05 | T16: 2.05 | AK16: 10.01 | AO16: 45.59
A17: 15 | C17: 14 | D17: 马院 | E17: 9.32 | F17: 0.72 | N17: 3.00 | Q17: 3.00 | R17: 2.00 | AK17: 0.60
A18: 14 | C18: 15 | D18: 警体部 | E18: 29.27 | F18: 0.67 | H18: 1.00 | N18: =A18*0.2+9 -> 11.80 | Q18: 2.80 | R18: 10.00 | T18: 2.00 | AK18: 1.00
A19: 15 | C19: 16 | D19: 基础部 | E19: 7.62 | F19: 0.72 | H19: 0.10 | N19: 3.00 | Q19: 3.00 | R19: 0.20 | AK19: 0.60
A20: 20 | C20: 17 | D20: 图书馆 | E20: 100.03 | F20: 0.96 | G20: 8.00 | H20: 0.50 | N20: 4.00 | Q20: 4.00 | R20: 1.14 | T20: 1.03 | AK20: 0.40 | AO20: 80.00
A21: 12 | C21: 18 | D21: 实训 | E21: 316.72 | F21: 0.58 | H21: 1.00 | N21: =A21*0.2+15 -> 17.40 | Q21: 2.40 | R21: 10.00 | T21: 2.00 | X21: 5.50 | AK21: 9.60 | AO21: =22+18.3+38.67+26.67+162.6 -> 268.24 | AQ21: 助学金已支付4.72万
A22: 19 | C22: 19 | D22: 培训部 | E22: 376.51 | F22: 0.91 | H22: 5.40 | L22: 0.80 | N22: 3.80 | Q22: 345.60 | T22: 20.00
A23: 4 | C23: 20 | D23: 学报 | E23: 8.29 | F23: 0.19 | H23: 6.50 | N23: 0.80 | Q23: 0.80
A24: 3 | C24: 21 | D24: 工会 | E24: 165.41 | F24: 0.14 | N24: 0.60 | Q24: 0.60 | U24: 119.07 | X24: 45.00 | AQ24: 工会经费已支付13.3万元。
A25: 30 | C25: 22 | D25: 后勤 | E25: 2,008.81 | F25: 1.44 | H25: 2.00 | K25: 390.00 | L25: 26.63 | M25: 472.39 | N25: 6.00 | P25: 114.05 | Q25: 6.00 | R25: 21.33 | T25: 57.00 | X25: 242.60 | AO25: =1.1+218.27 -> 219.37 | AP25: 450.00
C26: 23 | D26: 教科研 | E26: 400.00 | F26: 20.00 | H26: 49.00 | L26: 0.40 | N26: 2.20 | Q26: 30.00 | R26: 10.00 | S26: 11.00 | T26: 40.00 | W26: 3.60 | AK26: 3.00 | AO26: =345.5-114.7 -> 230.80
C27: 24 | D27: 增资 | E27: 1,075.67 | F27: 138.45 | H27: 9.20 | I27: 10.00 | Q27: 0.00 | R27: 13.82 | W27: 69.00 | X27: 29.04 | Z27: 662.40 | AO27: 143.76
C28: 25 | D28: 合计 | E28: 16,555.98 | F28: =SUM(F4:F27) -> 178.56 | G28: =SUM(G4:G27) -> 39.00 | H28: =SUM(H4:H27) -> 107.00 | I28: 10.00 | J28: 3.00 | K28: 390.00 | L28: 99.80 | M28: 477.19 | N28: 110.00 | O28: 60.00 | P28: 114.05 | Q28: 455.60 | R28: 106.04 | S28: 292.00 | T28: 210.00 | U28: 119.07 | V28: 68.38 | W28: 132.60 | X28: 383.07 | Y28: 1,727.17 | Z28: 2,512.40 | AA28: 1,046.95 | AB28: 2,572.57 | AC28: 534.74 | AD28: 241.68 | AE28: 288.52 | AF28: 129.70 | AG28: 770.00 | AH28: 140.75 | AI28: 132.00 | AJ28: 1.02 | AK28: 1,540.17 | AL28: 72.00 | AM28: 29.00 | AN28: 9.19 | AO28: 1,002.76 | AP28: 450.00 | AQ28: 0.00
C29: 26 | D29: 指标 | E29: 16,556.58 | F29: 217.56 | H29: 107.00 | I29: 10.00 | J29: 3.00 | K29: 390.00 | L29: 100.40 | M29: 477.19 | N29: 110.00 | O29: 60.00 | P29: 114.05 | Q29: 455.60 | R29: 106.04 | S29: 292.00 | T29: 210.00 | U29: 119.07 | V29: 68.38 | W29: 132.60 | X29: =55.17+327.9 -> 383.07 | Y29: =1859.17-132 -> 1,727.17 | Z29: =1850+662.4 -> 2,512.40 | AA29: 1,046.95 | AB29: 2,572.57 | AC29: 534.74 | AD29: 241.68 | AE29: 288.52 | AF29: 129.70 | AG29: 770.00 | AH29: 140.75 | AI29: 132.00 | AJ29: 1.02 | AK29: 1,540.17 | AL29: 72.00 | AM29: 29.00 | AN29: 9.19 | AO29: =39.77+278.66+44.97+639.36 -> 1,002.76 | AP29: 450.00
E31: 662.4
E32: 15894.18
E33: =E31+E32 -> 16556.58
